{"text_format":"3","workbook":"xlsx","n_sheets":1,"sheets":["רשימת מלאי"],"not_rendered":{"images":1,"defined_names":3},"read":"whole","date_system":"1900"}

{"sheet":"רשימת מלאי","index":0,"n_rows":28,"n_cols":13,"rows_kept":28}
[{"$nulls":12}," "]
[{"$nulls":10},"לסמן פריטים להזמנה חוזרת?","כן"]
[null,"להזמנה חוזרת","מזהה מלאי","שם","תיאור","מחיר ליחידה","כמות במלאי","ערך מלאי","רמה להזמנה חוזרת","זמן להזמנה חוזרת בימים","כמות בהזמנה חוזרת","הופסק?"]
[null,{"$f":"IFERROR((טבלת_רשימת_מלאי[[#This Row],[כמות במלאי]]<=טבלת_רשימת_מלאי[[#This Row],[רמה להזמנה חוזרת]])*(טבלת_רשימת_מלאי[[#This Row],[הופסק?]]=\"\")*valHighlight,0)","v":1},"IN0001","פריט 1","תיאור 1",{"v":51,"d":"₪ 51.00"},25,{"$f":"טבלת_רשימת_מלאי[[#This Row],[מחיר ליחידה]]*טבלת_רשימת_מלאי[[#This Row],[כמות במלאי]]","v":{"v":1275,"d":"₪ 1,275.00"}},29,13,50]
[null,{"$f":"IFERROR((טבלת_רשימת_מלאי[[#This Row],[כמות במלאי]]<=טבלת_רשימת_מלאי[[#This Row],[רמה להזמנה חוזרת]])*(טבלת_רשימת_מלאי[[#This Row],[הופסק?]]=\"\")*valHighlight,0)","v":1},"IN0002","פריט 2","תיאור 2",{"v":93,"d":"₪ 93.00"},132,{"$f":"טבלת_רשימת_מלאי[[#This Row],[מחיר ליחידה]]*טבלת_רשימת_מלאי[[#This Row],[כמות במלאי]]","v":{"v":12276,"d":"₪ 12,276.00"}},231,4,50]
[null,{"$f":"IFERROR((טבלת_רשימת_מלאי[[#This Row],[כמות במלאי]]<=טבלת_רשימת_מלאי[[#This Row],[רמה להזמנה חוזרת]])*(טבלת_רשימת_מלאי[[#This Row],[הופסק?]]=\"\")*valHighlight,0)","v":0},"IN0003","פריט 3","תיאור 3",{"v":57,"d":"₪ 57.00"},151,{"$f":"טבלת_רשימת_מלאי[[#This Row],[מחיר ליחידה]]*טבלת_רשימת_מלאי[[#This Row],[כמות במלאי]]","v":{"v":8607,"d":"₪ 8,607.00"}},114,11,150]
[null,{"$f":"IFERROR((טבלת_רשימת_מלאי[[#This Row],[כמות במלאי]]<=טבלת_רשימת_מלאי[[#This Row],[רמה להזמנה חוזרת]])*(טבלת_רשימת_מלאי[[#This Row],[הופסק?]]=\"\")*valHighlight,0)","v":0},"IN0004","פריט 4","תיאור 4",{"v":19,"d":"₪ 19.00"},186,{"$f":"טבלת_רשימת_מלאי[[#This Row],[מחיר ליחידה]]*טבלת_רשימת_מלאי[[#This Row],[כמות במלאי]]","v":{"v":3534,"d":"₪ 3,534.00"}},158,6,50]
[null,{"$f":"IFERROR((טבלת_רשימת_מלאי[[#This Row],[כמות במלאי]]<=טבלת_רשימת_מלאי[[#This Row],[רמה להזמנה חוזרת]])*(טבלת_רשימת_מלאי[[#This Row],[הופסק?]]=\"\")*valHighlight,0)","v":0},"IN0005","פריט 5","תיאור 5",{"v":75,"d":"₪ 75.00"},62,{"$f":"טבלת_רשימת_מלאי[[#This Row],[מחיר ליחידה]]*טבלת_רשימת_מלאי[[#This Row],[כמות במלאי]]","v":{"v":4650,"d":"₪ 4,650.00"}},39,12,50]
[null,{"$f":"IFERROR((טבלת_רשימת_מלאי[[#This Row],[כמות במלאי]]<=טבלת_רשימת_מלאי[[#This Row],[רמה להזמנה חוזרת]])*(טבלת_רשימת_מלאי[[#This Row],[הופסק?]]=\"\")*valHighlight,0)","v":1},"IN0006","פריט 6","תיאור 6",{"v":11,"d":"₪ 11.00"},5,{"$f":"טבלת_רשימת_מלאי[[#This Row],[מחיר ליחידה]]*טבלת_רשימת_מלאי[[#This Row],[כמות במלאי]]","v":{"v":55,"d":"₪ 55.00"}},9,13,150]
[null,{"$f":"IFERROR((טבלת_רשימת_מלאי[[#This Row],[כמות במלאי]]<=טבלת_רשימת_מלאי[[#This Row],[רמה להזמנה חוזרת]])*(טבלת_רשימת_מלאי[[#This Row],[הופסק?]]=\"\")*valHighlight,0)","v":0},"IN0007","פריט 7","תיאור 7",{"v":56,"d":"₪ 56.00"},58,{"$f":"טבלת_רשימת_מלאי[[#This Row],[מחיר ליחידה]]*טבלת_רשימת_מלאי[[#This Row],[כמות במלאי]]","v":{"v":3248,"d":"₪ 3,248.00"}},109,7,100,"כן"]
[null,{"$f":"IFERROR((טבלת_רשימת_מלאי[[#This Row],[כמות במלאי]]<=טבלת_רשימת_מלאי[[#This Row],[רמה להזמנה חוזרת]])*(טבלת_רשימת_מלאי[[#This Row],[הופסק?]]=\"\")*valHighlight,0)","v":1},"IN0008","פריט 8","תיאור 8",{"v":38,"d":"₪ 38.00"},101,{"$f":"טבלת_רשימת_מלאי[[#This Row],[מחיר ליחידה]]*טבלת_רשימת_מלאי[[#This Row],[כמות במלאי]]","v":{"v":3838,"d":"₪ 3,838.00"}},162,3,100]
[null,{"$f":"IFERROR((טבלת_רשימת_מלאי[[#This Row],[כמות במלאי]]<=טבלת_רשימת_מלאי[[#This Row],[רמה להזמנה חוזרת]])*(טבלת_רשימת_מלאי[[#This Row],[הופסק?]]=\"\")*valHighlight,0)","v":0},"IN0009","פריט 9","תיאור 9",{"v":59,"d":"₪ 59.00"},122,{"$f":"טבלת_רשימת_מלאי[[#This Row],[מחיר ליחידה]]*טבלת_רשימת_מלאי[[#This Row],[כמות במלאי]]","v":{"v":7198,"d":"₪ 7,198.00"}},82,3,150]
[null,{"$f":"IFERROR((טבלת_רשימת_מלאי[[#This Row],[כמות במלאי]]<=טבלת_רשימת_מלאי[[#This Row],[רמה להזמנה חוזרת]])*(טבלת_רשימת_מלאי[[#This Row],[הופסק?]]=\"\")*valHighlight,0)","v":1},"IN0010","פריט 10","תיאור 10",{"v":50,"d":"₪ 50.00"},175,{"$f":"טבלת_רשימת_מלאי[[#This Row],[מחיר ליחידה]]*טבלת_רשימת_מלאי[[#This Row],[כמות במלאי]]","v":{"v":8750,"d":"₪ 8,750.00"}},283,8,150]
[null,{"$f":"IFERROR((טבלת_רשימת_מלאי[[#This Row],[כמות במלאי]]<=טבלת_רשימת_מלאי[[#This Row],[רמה להזמנה חוזרת]])*(טבלת_רשימת_מלאי[[#This Row],[הופסק?]]=\"\")*valHighlight,0)","v":1},"IN0011","פריט 11","תיאור 11",{"v":59,"d":"₪ 59.00"},176,{"$f":"טבלת_רשימת_מלאי[[#This Row],[מחיר ליחידה]]*טבלת_רשימת_מלאי[[#This Row],[כמות במלאי]]","v":{"v":10384,"d":"₪ 10,384.00"}},229,1,100]
[null,{"$f":"IFERROR((טבלת_רשימת_מלאי[[#This Row],[כמות במלאי]]<=טבלת_רשימת_מלאי[[#This Row],[רמה להזמנה חוזרת]])*(טבלת_רשימת_מלאי[[#This Row],[הופסק?]]=\"\")*valHighlight,0)","v":1},"IN0012","פריט 12","תיאור 12",{"v":18,"d":"₪ 18.00"},22,{"$f":"טבלת_רשימת_מלאי[[#This Row],[מחיר ליחידה]]*טבלת_רשימת_מלאי[[#This Row],[כמות במלאי]]","v":{"v":396,"d":"₪ 396.00"}},36,12,50]
[null,{"$f":"IFERROR((טבלת_רשימת_מלאי[[#This Row],[כמות במלאי]]<=טבלת_רשימת_מלאי[[#This Row],[רמה להזמנה חוזרת]])*(טבלת_רשימת_מלאי[[#This Row],[הופסק?]]=\"\")*valHighlight,0)","v":1},"IN0013","פריט 13","תיאור 13",{"v":26,"d":"₪ 26.00"},72,{"$f":"טבלת_רשימת_מלאי[[#This Row],[מחיר ליחידה]]*טבלת_רשימת_מלאי[[#This Row],[כמות במלאי]]","v":{"v":1872,"d":"₪ 1,872.00"}},102,9,100]
[null,{"$f":"IFERROR((טבלת_רשימת_מלאי[[#This Row],[כמות במלאי]]<=טבלת_רשימת_מלאי[[#This Row],[רמה להזמנה חוזרת]])*(טבלת_רשימת_מלאי[[#This Row],[הופסק?]]=\"\")*valHighlight,0)","v":1},"IN0014","פריט 14","תיאור 14",{"v":42,"d":"₪ 42.00"},62,{"$f":"טבלת_רשימת_מלאי[[#This Row],[מחיר ליחידה]]*טבלת_רשימת_מלאי[[#This Row],[כמות במלאי]]","v":{"v":2604,"d":"₪ 2,604.00"}},83,2,100]
[null,{"$f":"IFERROR((טבלת_רשימת_מלאי[[#This Row],[כמות במלאי]]<=טבלת_רשימת_מלאי[[#This Row],[רמה להזמנה חוזרת]])*(טבלת_רשימת_מלאי[[#This Row],[הופסק?]]=\"\")*valHighlight,0)","v":0},"IN0015","פריט 15","תיאור 15",{"v":32,"d":"₪ 32.00"},46,{"$f":"טבלת_רשימת_מלאי[[#This Row],[מחיר ליחידה]]*טבלת_רשימת_מלאי[[#This Row],[כמות במלאי]]","v":{"v":1472,"d":"₪ 1,472.00"}},23,15,50]
[null,{"$f":"IFERROR((טבלת_רשימת_מלאי[[#This Row],[כמות במלאי]]<=טבלת_רשימת_מלאי[[#This Row],[רמה להזמנה חוזרת]])*(טבלת_רשימת_מלאי[[#This Row],[הופסק?]]=\"\")*valHighlight,0)","v":1},"IN0016","פריט 16","תיאור 16",{"v":90,"d":"₪ 90.00"},96,{"$f":"טבלת_רשימת_מלאי[[#This Row],[מחיר ליחידה]]*טבלת_רשימת_מלאי[[#This Row],[כמות במלאי]]","v":{"v":8640,"d":"₪ 8,640.00"}},180,3,50]
[null,{"$f":"IFERROR((טבלת_רשימת_מלאי[[#This Row],[כמות במלאי]]<=טבלת_רשימת_מלאי[[#This Row],[רמה להזמנה חוזרת]])*(טבלת_רשימת_מלאי[[#This Row],[הופסק?]]=\"\")*valHighlight,0)","v":0},"IN0017","פריט 17","תיאור 17",{"v":97,"d":"₪ 97.00"},57,{"$f":"טבלת_רשימת_מלאי[[#This Row],[מחיר ליחידה]]*טבלת_רשימת_מלאי[[#This Row],[כמות במלאי]]","v":{"v":5529,"d":"₪ 5,529.00"}},98,12,50,"כן"]
[null,{"$f":"IFERROR((טבלת_רשימת_מלאי[[#This Row],[כמות במלאי]]<=טבלת_רשימת_מלאי[[#This Row],[רמה להזמנה חוזרת]])*(טבלת_רשימת_מלאי[[#This Row],[הופסק?]]=\"\")*valHighlight,0)","v":1},"IN0018","פריט 18","תיאור 18",{"v":12,"d":"₪ 12.00"},6,{"$f":"טבלת_רשימת_מלאי[[#This Row],[מחיר ליחידה]]*טבלת_רשימת_מלאי[[#This Row],[כמות במלאי]]","v":{"v":72,"d":"₪ 72.00"}},7,13,50]
[null,{"$f":"IFERROR((טבלת_רשימת_מלאי[[#This Row],[כמות במלאי]]<=טבלת_רשימת_מלאי[[#This Row],[רמה להזמנה חוזרת]])*(טבלת_רשימת_מלאי[[#This Row],[הופסק?]]=\"\")*valHighlight,0)","v":1},"IN0019","פריט 19","תיאור 19",{"v":82,"d":"₪ 82.00"},143,{"$f":"טבלת_רשימת_מלאי[[#This Row],[מחיר ליחידה]]*טבלת_רשימת_מלאי[[#This Row],[כמות במלאי]]","v":{"v":11726,"d":"₪ 11,726.00"}},164,12,150]
[null,{"$f":"IFERROR((טבלת_רשימת_מלאי[[#This Row],[כמות במלאי]]<=טבלת_רשימת_מלאי[[#This Row],[רמה להזמנה חוזרת]])*(טבלת_רשימת_מלאי[[#This Row],[הופסק?]]=\"\")*valHighlight,0)","v":0},"IN0020","פריט 20","תיאור 20",{"v":16,"d":"₪ 16.00"},124,{"$f":"טבלת_רשימת_מלאי[[#This Row],[מחיר ליחידה]]*טבלת_רשימת_מלאי[[#This Row],[כמות במלאי]]","v":{"v":1984,"d":"₪ 1,984.00"}},113,14,50]
[null,{"$f":"IFERROR((טבלת_רשימת_מלאי[[#This Row],[כמות במלאי]]<=טבלת_רשימת_מלאי[[#This Row],[רמה להזמנה חוזרת]])*(טבלת_רשימת_מלאי[[#This Row],[הופסק?]]=\"\")*valHighlight,0)","v":0},"IN0021","פריט 21","תיאור 21",{"v":19,"d":"₪ 19.00"},112,{"$f":"טבלת_רשימת_מלאי[[#This Row],[מחיר ליחידה]]*טבלת_רשימת_מלאי[[#This Row],[כמות במלאי]]","v":{"v":2128,"d":"₪ 2,128.00"}},75,11,50]
[null,{"$f":"IFERROR((טבלת_רשימת_מלאי[[#This Row],[כמות במלאי]]<=טבלת_רשימת_מלאי[[#This Row],[רמה להזמנה חוזרת]])*(טבלת_רשימת_מלאי[[#This Row],[הופסק?]]=\"\")*valHighlight,0)","v":0},"IN0022","פריט 22","תיאור 22",{"v":24,"d":"₪ 24.00"},182,{"$f":"טבלת_רשימת_מלאי[[#This Row],[מחיר ליחידה]]*טבלת_רשימת_מלאי[[#This Row],[כמות במלאי]]","v":{"v":4368,"d":"₪ 4,368.00"}},132,15,150]
[null,{"$f":"IFERROR((טבלת_רשימת_מלאי[[#This Row],[כמות במלאי]]<=טבלת_רשימת_מלאי[[#This Row],[רמה להזמנה חוזרת]])*(טבלת_רשימת_מלאי[[#This Row],[הופסק?]]=\"\")*valHighlight,0)","v":0},"IN0023","פריט 23","תיאור 23",{"v":29,"d":"₪ 29.00"},106,{"$f":"טבלת_רשימת_מלאי[[#This Row],[מחיר ליחידה]]*טבלת_רשימת_מלאי[[#This Row],[כמות במלאי]]","v":{"v":3074,"d":"₪ 3,074.00"}},142,1,150,"כן"]
[null,{"$f":"IFERROR((טבלת_רשימת_מלאי[[#This Row],[כמות במלאי]]<=טבלת_רשימת_מלאי[[#This Row],[רמה להזמנה חוזרת]])*(טבלת_רשימת_מלאי[[#This Row],[הופסק?]]=\"\")*valHighlight,0)","v":0},"IN0024","פריט 24","תיאור 24",{"v":75,"d":"₪ 75.00"},173,{"$f":"טבלת_רשימת_מלאי[[#This Row],[מחיר ליחידה]]*טבלת_רשימת_מלאי[[#This Row],[כמות במלאי]]","v":{"v":12975,"d":"₪ 12,975.00"}},127,9,100]
[null,{"$f":"IFERROR((טבלת_רשימת_מלאי[[#This Row],[כמות במלאי]]<=טבלת_רשימת_מלאי[[#This Row],[רמה להזמנה חוזרת]])*(טבלת_רשימת_מלאי[[#This Row],[הופסק?]]=\"\")*valHighlight,0)","v":0},"IN0025","פריט 25","תיאור 25",{"v":14,"d":"₪ 14.00"},28,{"$f":"טבלת_רשימת_מלאי[[#This Row],[מחיר ליחידה]]*טבלת_רשימת_מלאי[[#This Row],[כמות במלאי]]","v":{"v":392,"d":"₪ 392.00"}},21,8,50]